[Event "*** Titled Tuesday Blitz"]
[Site "Chess.com"]
[Date "2021.02.16"]
[Round "6"]
[White "Chesswizard_2007"]
[Black "dropstoneDP"]
[Result "0-1"]
[WhiteElo "2719"]
[BlackElo "2983"]
[TimeControl "180+1"]
[EndTime "11:06:23 PST"]
[Termination "dropstoneDP won by resignation"]

1. e4 {[%clk 0:03:00.9]} 1... c6 {[%clk 0:02:59.2]} 2. Nc3 {[%clk 0:02:55.2]}
2... d5 {[%clk 0:02:59.3]} 3. d4 {[%clk 0:02:55.8]} 3... dxe4 {[%clk 0:02:58.5]}
4. Nxe4 {[%clk 0:02:56.7]} 4... Nf6 {[%clk 0:02:54.8]} 5. Nxf6+ {[%clk
0:02:56.8]} 5... exf6 {[%clk 0:02:55.2]} 6. Nf3 {[%clk 0:02:57.3]} 6... Bd6
{[%clk 0:02:52.7]} 7. Bd3 {[%clk 0:02:56.3]} 7... O-O {[%clk 0:02:48.5]} 8. h3
{[%clk 0:02:56.4]} 8... Na6 {[%clk 0:02:46.3]} 9. O-O {[%clk 0:02:54.6]} 9...
Nb4 {[%clk 0:02:45.8]} 10. Be2 {[%clk 0:02:53.4]} 10... Re8 {[%clk 0:02:39.3]}
11. Re1 {[%clk 0:02:51.8]} 11... Bf5 {[%clk 0:02:38.8]} 12. c3 {[%clk
0:01:52.9]} 12... Nc2 {[%clk 0:02:24.4]} 13. Nh4 {[%clk 0:01:52.9]} 13... Be4
{[%clk 0:02:24.8]} 14. Be3 {[%clk 0:01:43.9]} 14... Nxe3 {[%clk 0:02:10.3]} 15.
fxe3 {[%clk 0:01:42.6]} 15... Bg3 {[%clk 0:02:10.9]} 16. Nf3 {[%clk 0:01:41.4]}
16... Bxe1 {[%clk 0:02:10.7]} 17. Qxe1 {[%clk 0:01:42.1]} 17... Qe7 {[%clk
0:02:10.7]} 18. Kf2 {[%clk 0:01:39.9]} 18... Rad8 {[%clk 0:01:55.4]} 19. Qd2
{[%clk 0:01:38.3]} 19... g5 {[%clk 0:01:36]} 20. Nh2 {[%clk 0:01:29.8]} 20... f5
{[%clk 0:01:33.3]} 21. Rg1 {[%clk 0:01:24.6]} 21... Kg7 {[%clk 0:01:32]} 22. g4
{[%clk 0:01:17.5]} 22... Qd6 {[%clk 0:01:30.5]} 23. Nf1 {[%clk 0:01:16.9]} 23...
f4 {[%clk 0:01:22.4]} 24. exf4 {[%clk 0:01:14.5]} 24... gxf4 {[%clk 0:01:23.3]}
25. Bf3 {[%clk 0:01:13.6]} 25... c5 {[%clk 0:01:21.8]} 26. Bxe4 {[%clk
0:01:10.4]} 26... Rxe4 {[%clk 0:01:22.7]} 27. Qd3 {[%clk 0:01:11.1]} 27... Rde8
{[%clk 0:01:22.9]} 28. Nd2 {[%clk 0:01:09.7]} 28... Re2+ {[%clk 0:01:21.8]} 29.
Qxe2 {[%clk 0:01:10]} 29... Rxe2+ {[%clk 0:01:22.6]} 30. Kxe2 {[%clk 0:01:10.9]}
30... cxd4 {[%clk 0:01:23.2]} 31. Ne4 {[%clk 0:01:02.7]} 31... Qa6+ {[%clk
0:01:14.9]} 32. Kf3 {[%clk 0:01:02.5]} 32... Qd3+ {[%clk 0:01:14.3]} 33. Kxf4
{[%clk 0:01:01.4]} 33... Qe3+ {[%clk 0:01:14.3]} 34. Kf5 {[%clk 0:01:02.3]}
34... Qxg1 {[%clk 0:01:14.4]} 35. cxd4 {[%clk 0:01:03.2]} 35... Qxd4 {[%clk
0:01:14.3]} 36. Ng5 {[%clk 0:01:03.2]} 36... Qf6+ {[%clk 0:01:13.8]} 37. Ke4
{[%clk 0:01:03.8]} 37... Qxg5 {[%clk 0:01:14.7]} 38. b4 {[%clk 0:01:03.8]} 38...
Qh4 {[%clk 0:01:15.2]} 39. b5 {[%clk 0:01:04.7]} 39... b6 {[%clk 0:01:14.8]} 0-1

[Event "*** Titled Tuesday Blitz"]
[Site "Chess.com"]
[Date "2021.02.16"]
[Round "6"]
[White "Kapibara_Warri0r"]
[Black "Chamal_Gedgafov"]
[Result "1-0"]
[WhiteElo "2190"]
[BlackElo "2335"]
[TimeControl "180+1"]
[EndTime "11:06:26 PST"]
[Termination "Kapibara_Warri0r won by resignation"]

1. d4 {[%clk 0:03:00.9]} 1... Nf6 {[%clk 0:02:55.7]} 2. Nf3 {[%clk 0:02:56.9]}
2... g6 {[%clk 0:02:55.2]} 3. c4 {[%clk 0:02:55]} 3... Bg7 {[%clk 0:02:55.1]} 4.
Nc3 {[%clk 0:02:53.9]} 4... O-O {[%clk 0:02:52.3]} 5. g3 {[%clk 0:02:50.4]} 5...
d6 {[%clk 0:02:52.2]} 6. Bg2 {[%clk 0:02:50]} 6... Nbd7 {[%clk 0:02:52.8]} 7.
O-O {[%clk 0:02:49.4]} 7... e5 {[%clk 0:02:53.3]} 8. e4 {[%clk 0:02:43.9]} 8...
exd4 {[%clk 0:02:53.2]} 9. Nxd4 {[%clk 0:02:44.8]} 9... Re8 {[%clk 0:02:53.5]}
10. Be3 {[%clk 0:02:38.8]} 10... Nc5 {[%clk 0:02:52.9]} 11. Qc2 {[%clk
0:02:31.6]} 11... a5 {[%clk 0:02:52.4]} 12. Rfe1 {[%clk 0:02:30.1]} 12... a4
{[%clk 0:02:50.2]} 13. Rad1 {[%clk 0:02:29.6]} 13... c6 {[%clk 0:02:50]} 14.
Nxc6 {[%clk 0:02:24.6]} 14... Qb6 {[%clk 0:02:34.7]} 15. Nd4 {[%clk 0:02:14.4]}
15... Qb4 {[%clk 0:02:31.3]} 16. Ndb5 {[%clk 0:02:07.5]} 16... Be6 {[%clk
0:02:09.6]} 17. Nc7 {[%clk 0:01:59.3]} 17... Qxc4 {[%clk 0:01:56.8]} 18. Nxa8
{[%clk 0:01:50.8]} 18... Rxa8 {[%clk 0:01:55.8]} 19. Rxd6 {[%clk 0:01:45.1]}
19... a3 {[%clk 0:01:36.9]} 20. Red1 {[%clk 0:01:34.4]} 20... h5 {[%clk
0:01:27.6]} 21. Bf1 {[%clk 0:01:17.3]} 21... Qb4 {[%clk 0:01:22.8]} 22. bxa3
{[%clk 0:00:56.1]} 22... Rxa3 {[%clk 0:01:17.6]} 23. Nd5 {[%clk 0:00:48.6]}
23... Ncxe4 {[%clk 0:01:00.6]} 24. Nxb4 {[%clk 0:00:46.1]} 1-0

[Event "*** Titled Tuesday Blitz"]
[Site "Chess.com"]
[Date "2021.02.16"]
[Round "6"]
[White "Berardino"]
[Black "Unknown_IM"]
[Result "1-0"]
[WhiteElo "2591"]
[BlackElo "2387"]
[TimeControl "180+1"]
[EndTime "11:06:42 PST"]
[Termination "Berardino won by resignation"]

1. e4 {[%clk 0:02:59.7]} 1... e5 {[%clk 0:02:59.6]} 2. Bc4 {[%clk 0:02:59.4]}
2... Nc6 {[%clk 0:02:59]} 3. Nc3 {[%clk 0:02:58.9]} 3... Nf6 {[%clk 0:02:56.8]}
4. d3 {[%clk 0:02:57.6]} 4... Bc5 {[%clk 0:02:56.1]} 5. f4 {[%clk 0:02:57.1]}
5... d6 {[%clk 0:02:56]} 6. Nf3 {[%clk 0:02:57.4]} 6... a6 {[%clk 0:02:55.9]} 7.
f5 {[%clk 0:02:49.4]} 7... h6 {[%clk 0:02:41.5]} 8. Qe2 {[%clk 0:02:46.5]} 8...
Bd7 {[%clk 0:02:33]} 9. Be3 {[%clk 0:02:46.3]} 9... Bxe3 {[%clk 0:02:24.8]} 10.
Qxe3 {[%clk 0:02:47.2]} 10... Qe7 {[%clk 0:02:24.3]} 11. a3 {[%clk 0:02:39.5]}
11... O-O-O {[%clk 0:02:23.7]} 12. b4 {[%clk 0:02:37.6]} 12... g6 {[%clk
0:02:16.7]} 13. fxg6 {[%clk 0:02:31.4]} 13... fxg6 {[%clk 0:02:16.4]} 14. O-O
{[%clk 0:02:30.8]} 14... Ng4 {[%clk 0:02:12.1]} 15. Qd2 {[%clk 0:02:28.4]} 15...
Nd4 {[%clk 0:01:43.9]} 16. Nd5 {[%clk 0:02:24.4]} 16... Qg7 {[%clk 0:01:29.2]}
17. h3 {[%clk 0:02:13.3]} 17... h5 {[%clk 0:01:10.7]} 18. Nxd4 {[%clk
0:02:03.8]} 18... exd4 {[%clk 0:01:10.6]} 19. hxg4 {[%clk 0:02:04.2]} 19... hxg4
{[%clk 0:01:10.6]} 20. Nf6 {[%clk 0:01:45.7]} 20... g3 {[%clk 0:01:02.9]} 21.
Qg5 {[%clk 0:01:42]} 21... Rh1+ {[%clk 0:01:01.3]} 22. Kxh1 {[%clk 0:01:42.1]}
22... Qh8+ {[%clk 0:01:01.3]} 23. Nh5 {[%clk 0:01:42.4]} 23... gxh5 {[%clk
0:00:56.5]} 24. Rf7 {[%clk 0:01:33]} 24... h4 {[%clk 0:00:53.9]} 25. Rxd7 {[%clk
0:01:27.7]} 25... Kxd7 {[%clk 0:00:50.9]} 26. Qf5+ {[%clk 0:01:13.2]} 26... Kc6
{[%clk 0:00:50.4]} 27. b5+ {[%clk 0:01:13.2]} 27... Kb6 {[%clk 0:00:49.4]} 28.
bxa6 {[%clk 0:01:12.8]} 28... bxa6 {[%clk 0:00:39.8]} 29. Rb1+ {[%clk
0:01:12.9]} 29... Ka7 {[%clk 0:00:39.9]} 30. Qa5 {[%clk 0:01:06.3]} 1-0

[Event "*** Titled Tuesday Blitz"]
[Site "Chess.com"]
[Date "2021.02.16"]
[Round "6"]
[White "AlexeiShirov"]
[Black "Spalir"]
[Result "1-0"]
[WhiteElo "2845"]
[BlackElo "2671"]
[TimeControl "180+1"]
[EndTime "11:06:44 PST"]
[Termination "AlexeiShirov won by resignation"]

1. e4 {[%clk 0:03:00.9]} 1... c5 {[%clk 0:03:00.5]} 2. Nf3 {[%clk 0:03:00.5]}
2... d6 {[%clk 0:03:00.1]} 3. d4 {[%clk 0:03:00.4]} 3... cxd4 {[%clk 0:03:01]}
4. Nxd4 {[%clk 0:03:00.4]} 4... Nf6 {[%clk 0:03:01.1]} 5. Nc3 {[%clk 0:03:00.5]}
5... a6 {[%clk 0:03:01.2]} 6. h3 {[%clk 0:03:00.6]} 6... e5 {[%clk 0:02:59.1]}
7. Nb3 {[%clk 0:02:59.7]} 7... Be6 {[%clk 0:02:57]} 8. f4 {[%clk 0:02:59.3]}
8... Be7 {[%clk 0:02:46.8]} 9. Qf3 {[%clk 0:02:43.6]} 9... Nc6 {[%clk
0:02:40.4]} 10. Be3 {[%clk 0:02:09.1]} 10... exf4 {[%clk 0:02:36.7]} 11. Bxf4
{[%clk 0:02:07.2]} 11... Ne5 {[%clk 0:02:34.3]} 12. Qe3 {[%clk 0:02:00.2]} 12...
O-O {[%clk 0:02:34.1]} 13. O-O-O {[%clk 0:01:58.9]} 13... Nfd7 {[%clk
0:02:28.7]} 14. Nd4 {[%clk 0:01:53]} 14... b5 {[%clk 0:02:19.3]} 15. Kb1 {[%clk
0:01:42.8]} 15... Qc7 {[%clk 0:02:15.7]} 16. Nf5 {[%clk 0:01:38.6]} 16... Bxf5
{[%clk 0:02:09.6]} 17. Nd5 {[%clk 0:01:36.7]} 17... Qd8 {[%clk 0:02:06.4]} 18.
exf5 {[%clk 0:01:35.2]} 18... Re8 {[%clk 0:02:03]} 19. g4 {[%clk 0:01:31.5]}
19... Bf6 {[%clk 0:01:40.6]} 20. Qg3 {[%clk 0:01:14.9]} 20... Bh4 {[%clk
0:01:35.8]} 21. Qg2 {[%clk 0:01:13.1]} 21... h6 {[%clk 0:01:32.4]} 22. Nc3
{[%clk 0:01:07]} 22... Qb6 {[%clk 0:01:22.1]} 23. Ne4 {[%clk 0:01:03.8]} 23...
Nc4 {[%clk 0:01:06.6]} 24. Bxc4 {[%clk 0:00:59.8]} 24... bxc4 {[%clk 0:01:07]}
25. Rxd6 {[%clk 0:00:59.1]} 25... Qb5 {[%clk 0:01:02.7]} 26. Nc3 {[%clk
0:00:58.6]} 26... Qb4 {[%clk 0:00:45.1]} 27. Rxd7 {[%clk 0:00:54.9]} 27... Bf6
{[%clk 0:00:43.1]} 28. Rb7 {[%clk 0:00:52.4]} 1-0

[Event "*** Titled Tuesday Blitz"]
[Site "Chess.com"]
[Date "2021.02.16"]
[Round "6"]
[White "Shahaliyev"]
[Black "GadimbayliA"]
[Result "0-1"]
[WhiteElo "2672"]
[BlackElo "2847"]
[TimeControl "180+1"]
[EndTime "11:06:47 PST"]
[Termination "GadimbayliA won by resignation"]

1. Nf3 {[%clk 0:03:00.9]} 1... d5 {[%clk 0:02:58.8]} 2. c4 {[%clk 0:03:00.5]}
2... d4 {[%clk 0:02:57.8]} 3. d3 {[%clk 0:03:00.3]} 3... c5 {[%clk 0:02:58.7]}
4. e3 {[%clk 0:02:59.8]} 4... Nc6 {[%clk 0:02:59]} 5. exd4 {[%clk 0:02:59.3]}
5... cxd4 {[%clk 0:02:59.9]} 6. g3 {[%clk 0:02:58.2]} 6... Nf6 {[%clk
0:03:00.2]} 7. Bg2 {[%clk 0:02:58.3]} 7... g6 {[%clk 0:03:00.7]} 8. O-O {[%clk
0:02:58.7]} 8... Bg7 {[%clk 0:03:01.3]} 9. Re1 {[%clk 0:02:52.8]} 9... O-O
{[%clk 0:03:00.9]} 10. Na3 {[%clk 0:02:39]} 10... Re8 {[%clk 0:02:59.8]} 11. Nc2
{[%clk 0:02:38.3]} 11... a5 {[%clk 0:02:57.9]} 12. Bf4 {[%clk 0:02:32.6]} 12...
Nh5 {[%clk 0:02:56.8]} 13. Bg5 {[%clk 0:02:32]} 13... h6 {[%clk 0:02:54.8]} 14.
Bc1 {[%clk 0:02:20.1]} 14... e5 {[%clk 0:02:53]} 15. Nd2 {[%clk 0:02:17.4]}
15... f5 {[%clk 0:02:51.7]} 16. Nb3 {[%clk 0:02:00]} 16... Kh7 {[%clk
0:02:45.2]} 17. Nc5 {[%clk 0:01:52.5]} 17... Qd6 {[%clk 0:02:32.7]} 18. Na4
{[%clk 0:01:50.9]} 18... Be6 {[%clk 0:02:31.3]} 19. b3 {[%clk 0:01:50.9]} 19...
Rad8 {[%clk 0:02:25.9]} 20. Ba3 {[%clk 0:01:47.1]} 20... Qc7 {[%clk 0:02:25.3]}
21. b4 {[%clk 0:01:38.3]} 21... e4 {[%clk 0:02:19.9]} 22. b5 {[%clk 0:01:27]}
22... Ne5 {[%clk 0:02:13.9]} 23. Nc5 {[%clk 0:01:20.5]} 23... exd3 {[%clk
0:01:58.7]} 24. Nxd4 {[%clk 0:00:59.3]} 24... Rxd4 {[%clk 0:01:53.3]} 25. Nxe6
{[%clk 0:00:59.6]} 25... Rxe6 {[%clk 0:01:52]} 26. Bb2 {[%clk 0:01:00.2]} 26...
Rd8 {[%clk 0:01:50.7]} 27. Bd5 {[%clk 0:01:00.3]} 27... Ree8 {[%clk 0:01:48.6]}
28. Rb1 {[%clk 0:00:46.9]} 28... d2 {[%clk 0:01:34.2]} 29. Re2 {[%clk
0:00:42.9]} 29... Nxc4 {[%clk 0:01:33.8]} 30. Bxc4 {[%clk 0:00:36.4]} 30... Qxc4
{[%clk 0:01:27.7]} 31. Rxe8 {[%clk 0:00:34.8]} 31... Rxe8 {[%clk 0:01:28.6]} 32.
Qxd2 {[%clk 0:00:33.6]} 32... Qxa2 {[%clk 0:01:25.2]} 0-1

[Event "*** Titled Tuesday Blitz"]
[Site "Chess.com"]
[Date "2021.02.16"]
[Round "6"]
[White "jefferyx"]
[Black "Fandorine"]
[Result "1-0"]
[WhiteElo "2988"]
[BlackElo "2849"]
[TimeControl "180+1"]
[EndTime "11:07:00 PST"]
[Termination "jefferyx won by resignation"]

1. e4 {[%clk 0:03:00.9]} 1... c5 {[%clk 0:02:59.9]} 2. Nf3 {[%clk 0:02:57.1]}
2... e6 {[%clk 0:03:00.2]} 3. g3 {[%clk 0:02:55.8]} 3... Nc6 {[%clk 0:02:59.7]}
4. Bg2 {[%clk 0:02:55.6]} 4... Nf6 {[%clk 0:03:00.3]} 5. Qe2 {[%clk 0:02:54.7]}
5... e5 {[%clk 0:02:55.6]} 6. O-O {[%clk 0:02:54.3]} 6... Be7 {[%clk 0:02:55.4]}
7. c3 {[%clk 0:02:53.8]} 7... O-O {[%clk 0:02:53.9]} 8. Na3 {[%clk 0:02:52.2]}
8... d6 {[%clk 0:02:53.3]} 9. d3 {[%clk 0:02:48.6]} 9... Re8 {[%clk 0:02:53.3]}
10. Bg5 {[%clk 0:02:45.9]} 10... h6 {[%clk 0:02:47.2]} 11. Bxf6 {[%clk
0:02:45.6]} 11... Bxf6 {[%clk 0:02:48.1]} 12. Nc4 {[%clk 0:02:45.5]} 12... Be7
{[%clk 0:02:47.6]} 13. a4 {[%clk 0:02:39.9]} 13... Be6 {[%clk 0:02:45.7]} 14.
Nfd2 {[%clk 0:02:39.4]} 14... Bf8 {[%clk 0:02:44.5]} 15. Ne3 {[%clk 0:02:32.1]}
15... Rb8 {[%clk 0:02:35.3]} 16. Ndc4 {[%clk 0:02:23.1]} 16... b6 {[%clk
0:02:21.9]} 17. f4 {[%clk 0:02:21.8]} 17... a6 {[%clk 0:02:21.6]} 18. f5 {[%clk
0:02:16.6]} 18... Bc8 {[%clk 0:02:21.2]} 19. f6 {[%clk 0:02:06.2]} 19... g6
{[%clk 0:02:19.5]} 20. Nd5 {[%clk 0:02:05.8]} 20... Be6 {[%clk 0:02:03.6]} 21.
Nce3 {[%clk 0:02:04.6]} 21... h5 {[%clk 0:01:54.2]} 22. Bf3 {[%clk 0:02:01.2]}
22... Bh6 {[%clk 0:01:50.8]} 23. Bxh5 {[%clk 0:01:58.6]} 23... Nd4 {[%clk
0:01:32.6]} 24. cxd4 {[%clk 0:01:55.3]} 24... exd4 {[%clk 0:01:32.7]} 25. Ne7+
{[%clk 0:01:23.1]} 25... Rxe7 {[%clk 0:01:28.4]} 26. fxe7 {[%clk 0:01:24]} 26...
Qxe7 {[%clk 0:01:25.5]} 27. Nd5 {[%clk 0:01:24.3]} 27... Bxd5 {[%clk 0:01:11.3]}
28. exd5 {[%clk 0:01:25.2]} 28... Qe3+ {[%clk 0:01:09.5]} 29. Kg2 {[%clk
0:01:18.1]} 29... gxh5 {[%clk 0:01:09.4]} 30. Qxh5 {[%clk 0:01:19]} 30... Rf8
{[%clk 0:01:08.9]} 31. Rf2 {[%clk 0:01:06.9]} 31... Qg5 {[%clk 0:00:58.2]} 32.
Qxg5+ {[%clk 0:01:03.2]} 32... Bxg5 {[%clk 0:00:59.1]} 33. h4 {[%clk 0:01:04.1]}
33... Be3 {[%clk 0:00:59.3]} 34. Rf6 {[%clk 0:01:03.2]} 34... Rd8 {[%clk
0:00:56.1]} 35. g4 {[%clk 0:01:03.1]} 35... Kg7 {[%clk 0:00:51.3]} 36. g5 {[%clk
0:01:03]} 36... Rh8 {[%clk 0:00:51.7]} 37. Kg3 {[%clk 0:01:02.4]} 37... Rd8
{[%clk 0:00:46.6]} 38. Kg4 {[%clk 0:01:01.6]} 38... b5 {[%clk 0:00:46.6]} 39.
axb5 {[%clk 0:01:00.9]} 39... axb5 {[%clk 0:00:47.5]} 40. Ra7 {[%clk 0:01:01.1]}
1-0

[Event "*** Titled Tuesday Blitz"]
[Site "Chess.com"]
[Date "2021.02.16"]
[Round "6"]
[White "Eliwood44"]
[Black "ARTHURMOTIVATOR"]
[Result "1-0"]
[WhiteElo "2464"]
[BlackElo "2316"]
[TimeControl "180+1"]
[EndTime "11:07:01 PST"]
[Termination "Eliwood44 won by resignation"]

1. d4 {[%clk 0:03:00.9]} 1... Nf6 {[%clk 0:02:58.4]} 2. Nf3 {[%clk 0:02:52.2]}
2... g6 {[%clk 0:02:55]} 3. Bf4 {[%clk 0:02:52.5]} 3... Bg7 {[%clk 0:02:54.7]}
4. Nc3 {[%clk 0:02:52]} 4... d5 {[%clk 0:02:51.7]} 5. e3 {[%clk 0:02:52]} 5...
O-O {[%clk 0:02:49.6]} 6. Be2 {[%clk 0:02:50.6]} 6... c6 {[%clk 0:02:49]} 7. h3
{[%clk 0:02:49.5]} 7... Nbd7 {[%clk 0:02:46.2]} 8. O-O {[%clk 0:02:49.8]} 8...
b5 {[%clk 0:02:33.4]} 9. Bh2 {[%clk 0:02:47.3]} 9... Nb6 {[%clk 0:02:24.8]} 10.
a4 {[%clk 0:02:46.9]} 10... b4 {[%clk 0:02:23.4]} 11. Na2 {[%clk 0:02:47.1]}
11... a5 {[%clk 0:02:22.3]} 12. Nc1 {[%clk 0:02:47.1]} 12... Nc4 {[%clk
0:02:12.4]} 13. b3 {[%clk 0:02:42]} 13... Nd6 {[%clk 0:02:11.4]} 14. Nd3 {[%clk
0:02:40.1]} 14... Nfe4 {[%clk 0:02:11.3]} 15. Nfe5 {[%clk 0:02:38]} 15... Nc3
{[%clk 0:01:23]} 16. Qe1 {[%clk 0:02:32.1]} 16... Nxe2+ {[%clk 0:01:23.9]} 17.
Qxe2 {[%clk 0:02:32]} 17... Bb7 {[%clk 0:01:24.8]} 18. Nc5 {[%clk 0:02:30.5]}
18... Rc8 {[%clk 0:01:23.5]} 19. Rac1 {[%clk 0:02:28.8]} 19... Ba8 {[%clk
0:01:11.4]} 20. c3 {[%clk 0:02:28]} 20... Ne4 {[%clk 0:01:02.9]} 21. cxb4 {[%clk
0:02:25.6]} 21... axb4 {[%clk 0:01:03.8]} 22. Nxe4 {[%clk 0:02:21.8]} 22... dxe4
{[%clk 0:01:02.6]} 23. Qc4 {[%clk 0:02:13.9]} 23... Qd5 {[%clk 0:00:58.3]} 24.
Qxb4 {[%clk 0:02:10.1]} 24... Rb8 {[%clk 0:00:53.1]} 25. Qxe7 {[%clk 0:02:09]}
25... Rfe8 {[%clk 0:00:38.7]} 26. Qa7 {[%clk 0:01:58.2]} 26... Rxb3 {[%clk
0:00:31.5]} 27. Rc5 {[%clk 0:01:55.4]} 27... Qe6 {[%clk 0:00:28.9]} 28. Rfc1
{[%clk 0:01:51]} 28... Bf8 {[%clk 0:00:26.6]} 29. R5c2 {[%clk 0:01:42.4]} 29...
h5 {[%clk 0:00:17.9]} 30. Bf4 {[%clk 0:01:39.8]} 30... Ra3 {[%clk 0:00:15.4]}
31. Nxc6 {[%clk 0:01:37.7]} 31... Qb3 {[%clk 0:00:11.2]} 32. a5 {[%clk
0:01:28.2]} 32... Qb5 {[%clk 0:00:09.8]} 33. Ne5 {[%clk 0:01:23.2]} 33... Rxa5
{[%clk 0:00:09.8]} 34. Qxf7+ {[%clk 0:01:22.6]} 1-0

[Event "*** Titled Tuesday Blitz"]
[Site "Chess.com"]
[Date "2021.02.16"]
[Round "6"]
[White "abeljusto"]
[Black "bogcsab"]
[Result "0-1"]
[WhiteElo "2008"]
[BlackElo "2164"]
[TimeControl "180+1"]
[EndTime "11:07:06 PST"]
[Termination "bogcsab won by resignation"]

1. d4 {[%clk 0:03:00.9]} 1... Nf6 {[%clk 0:02:58.7]} 2. Bf4 {[%clk 0:03:01.1]}
2... g6 {[%clk 0:02:58.1]} 3. e3 {[%clk 0:03:00.2]} 3... Bg7 {[%clk 0:02:57.4]}
4. Nf3 {[%clk 0:02:58.9]} 4... O-O {[%clk 0:02:57.5]} 5. Be2 {[%clk 0:02:58.5]}
5... d6 {[%clk 0:02:58.1]} 6. h3 {[%clk 0:02:57.4]} 6... Nbd7 {[%clk 0:02:58.6]}
7. O-O {[%clk 0:02:57.8]} 7... Qe8 {[%clk 0:02:59.1]} 8. c4 {[%clk 0:02:56.7]}
8... e5 {[%clk 0:02:59.6]} 9. Bh2 {[%clk 0:02:56.9]} 9... Qe7 {[%clk 0:02:59.4]}
10. Nc3 {[%clk 0:02:56.1]} 10... c6 {[%clk 0:02:59.8]} 11. Rc1 {[%clk
0:02:52.2]} 11... Ne8 {[%clk 0:02:59.8]} 12. Re1 {[%clk 0:02:48.1]} 12... f5
{[%clk 0:02:59.3]} 13. b4 {[%clk 0:02:47.2]} 13... g5 {[%clk 0:02:58.2]} 14. Qb3
{[%clk 0:02:17.7]} 14... e4 {[%clk 0:02:56.7]} 15. Nd2 {[%clk 0:02:17.1]} 15...
Ndf6 {[%clk 0:02:53.8]} 16. d5 {[%clk 0:02:07.4]} 16... cxd5 {[%clk 0:02:49]}
17. cxd5 {[%clk 0:02:05.7]} 17... Nd7 {[%clk 0:02:47.5]} 18. Nb5 {[%clk
0:02:04]} 18... Ne5 {[%clk 0:02:45.9]} 19. Nc4 {[%clk 0:01:59.1]} 19... a6
{[%clk 0:02:38.2]} 20. Nb6 {[%clk 0:01:51.8]} 20... axb5 {[%clk 0:02:28]} 21.
Nxc8 {[%clk 0:01:51.3]} 21... Qf7 {[%clk 0:02:22.7]} 22. Nb6 {[%clk 0:01:48.3]}
22... Rd8 {[%clk 0:02:20.9]} 23. Bxb5 {[%clk 0:01:46.2]} 23... f4 {[%clk
0:02:15.6]} 24. exf4 {[%clk 0:01:45.2]} 24... gxf4 {[%clk 0:02:13.7]} 25. Rxe4
{[%clk 0:01:44.6]} 25... f3 {[%clk 0:02:12.9]} 26. g4 {[%clk 0:01:24.7]} 26...
Qg6 {[%clk 0:02:09.1]} 27. Rce1 {[%clk 0:00:52.8]} 27... h5 {[%clk 0:02:06.6]}
28. Nc4 {[%clk 0:00:44.1]} 28... Nf6 {[%clk 0:01:28.8]} 29. Nxe5 {[%clk
0:00:43.1]} 29... dxe5 {[%clk 0:01:28.8]} 30. Rxe5 {[%clk 0:00:34.4]} 30... hxg4
{[%clk 0:01:25.6]} 31. hxg4 {[%clk 0:00:27.7]} 31... Nxg4 {[%clk 0:01:20.8]} 32.
d6+ {[%clk 0:00:20.8]} 32... Kh8 {[%clk 0:01:15.7]} 33. Re7 {[%clk 0:00:19.7]}
33... Nxh2+ {[%clk 0:01:05.6]} 0-1

[Event "*** Titled Tuesday Blitz"]
[Site "Chess.com"]
[Date "2021.02.16"]
[Round "6"]
[White "kikydu96"]
[Black "Alexsur1981"]
[Result "0-1"]
[WhiteElo "2612"]
[BlackElo "2843"]
[TimeControl "180+1"]
[EndTime "11:07:09 PST"]
[Termination "Alexsur1981 won by resignation"]

1. e4 {[%clk 0:02:58.8]} 1... c5 {[%clk 0:03:00.1]} 2. Nf3 {[%clk 0:02:55]} 2...
e6 {[%clk 0:03:00.6]} 3. c3 {[%clk 0:02:54.5]} 3... Nc6 {[%clk 0:03:00.1]} 4. d4
{[%clk 0:02:54.4]} 4... d5 {[%clk 0:03:00.7]} 5. exd5 {[%clk 0:02:54.2]} 5...
exd5 {[%clk 0:03:01.6]} 6. Bb5 {[%clk 0:02:52.4]} 6... Bd6 {[%clk 0:03:02]} 7.
dxc5 {[%clk 0:02:51.9]} 7... Bxc5 {[%clk 0:03:02.9]} 8. O-O {[%clk 0:02:52.2]}
8... Ne7 {[%clk 0:03:03.3]} 9. Nbd2 {[%clk 0:02:51.5]} 9... O-O {[%clk
0:03:03.9]} 10. Nb3 {[%clk 0:02:51.5]} 10... Bb6 {[%clk 0:03:04.5]} 11. Nbd4
{[%clk 0:02:51.6]} 11... Nxd4 {[%clk 0:03:04.4]} 12. Nxd4 {[%clk 0:02:50.9]}
12... Nf5 {[%clk 0:03:05.3]} 13. Nxf5 {[%clk 0:02:49.6]} 13... Bxf5 {[%clk
0:03:06.2]} 14. Bd3 {[%clk 0:02:49.6]} 14... Be4 {[%clk 0:03:05.9]} 15. Re1
{[%clk 0:02:33]} 15... Qf6 {[%clk 0:03:02.7]} 16. Be3 {[%clk 0:02:32.4]} 16...
Rfe8 {[%clk 0:03:00.5]} 17. Bxb6 {[%clk 0:02:27.5]} 17... Qxb6 {[%clk
0:03:01.4]} 18. Bxe4 {[%clk 0:02:24.1]} 18... dxe4 {[%clk 0:03:02.3]} 19. Qb3
{[%clk 0:02:24.4]} 19... Qxb3 {[%clk 0:02:59.6]} 20. axb3 {[%clk 0:02:25.3]}
20... f5 {[%clk 0:02:56.7]} 21. b4 {[%clk 0:02:17.5]} 21... Kf7 {[%clk
0:02:52.5]} 22. Ra5 {[%clk 0:02:16.9]} 22... g6 {[%clk 0:02:51.3]} 23. Rea1
{[%clk 0:02:17]} 23... Red8 {[%clk 0:02:46.7]} 24. Kf1 {[%clk 0:02:14.2]} 24...
a6 {[%clk 0:02:44.5]} 25. b5 {[%clk 0:02:14]} 25... Rd2 {[%clk 0:02:41.1]} 26.
bxa6 {[%clk 0:02:01]} 26... bxa6 {[%clk 0:02:42]} 27. Rxa6 {[%clk 0:01:57.4]}
27... Rxa6 {[%clk 0:02:42.9]} 28. Rxa6 {[%clk 0:01:57.8]} 28... Rxb2 {[%clk
0:02:42.9]} 29. Ra7+ {[%clk 0:01:58.3]} 29... Kf6 {[%clk 0:02:43.4]} 30. Rxh7
{[%clk 0:01:56.8]} 30... f4 {[%clk 0:02:43.9]} 31. Rc7 {[%clk 0:01:53.9]} 31...
f3 {[%clk 0:02:42.2]} 32. gxf3 {[%clk 0:01:50.9]} 32... exf3 {[%clk 0:02:43.1]}
33. Ke1 {[%clk 0:01:50.3]} 33... Re2+ {[%clk 0:02:43.1]} 34. Kf1 {[%clk
0:01:49.9]} 34... Rc2 {[%clk 0:02:43.5]} 35. Ke1 {[%clk 0:01:49.6]} 35... g5
{[%clk 0:02:43.7]} 36. Rc8 {[%clk 0:01:36.9]} 36... Kf5 {[%clk 0:02:43.7]} 37.
Rf8+ {[%clk 0:01:34.5]} 37... Ke4 {[%clk 0:02:42.5]} 38. Re8+ {[%clk 0:01:32.7]}
38... Kf4 {[%clk 0:02:42.1]} 39. Rf8+ {[%clk 0:01:32.6]} 39... Ke4 {[%clk
0:02:40.3]} 40. Re8+ {[%clk 0:01:30.7]} 40... Kd5 {[%clk 0:02:35.6]} 41. Rg8
{[%clk 0:01:22.7]} 41... Rxc3 {[%clk 0:02:32.2]} 42. Rxg5+ {[%clk 0:01:22.5]}
42... Ke4 {[%clk 0:02:32.7]} 43. Rg8 {[%clk 0:01:19.7]} 43... Ra3 {[%clk
0:02:31.6]} 44. h4 {[%clk 0:01:13.4]} 44... Ra1+ {[%clk 0:02:29.7]} 45. Kd2
{[%clk 0:01:13.5]} 45... Ra2+ {[%clk 0:02:30.6]} 46. Ke1 {[%clk 0:01:13.1]}
46... Re2+ {[%clk 0:02:17.3]} 47. Kf1 {[%clk 0:01:11.6]} 47... Rb2 {[%clk
0:02:17.9]} 48. Kg1 {[%clk 0:01:02.6]} 48... Kf4 {[%clk 0:02:18.5]} 49. h5
{[%clk 0:00:54]} 49... Rb1+ {[%clk 0:02:18.5]} 50. Kh2 {[%clk 0:00:54.3]} 50...
Rb5 {[%clk 0:02:14.5]} 51. Rh8 {[%clk 0:00:47.4]} 51... Kg4 {[%clk 0:02:13]} 52.
h6 {[%clk 0:00:43.2]} 52... Rh5+ {[%clk 0:02:10]} 53. Kg1 {[%clk 0:00:42.5]}
53... Kh3 {[%clk 0:02:04.5]} 54. h7 {[%clk 0:00:34.6]} 54... Ra5 {[%clk
0:02:02.5]} 0-1